{"text_format":"3","workbook":"xlsx","n_sheets":2,"sheets":["Cover Page-Flash drive","BOQ Manqondo PS"],"not_rendered":{"images":1,"external_links":5,"defined_names":22,"comments":1},"read":"whole","date_system":"1900"}

{"sheet":"Cover Page-Flash drive","index":0,"n_rows":46,"n_cols":4,"rows_kept":46,"merged":[[0,0,0,3],[1,0,1,3],[8,0,8,3],[9,0,9,3],[11,0,11,3],[13,0,13,3],[14,0,14,3],[15,0,15,3],[18,0,18,3],[19,0,19,3],[20,0,20,1],[20,2,20,3],[21,0,21,1],[21,2,21,3],[22,0,22,1],[22,2,22,3],[23,0,23,1],[23,2,23,3],[24,0,24,1],[24,2,24,3],[25,0,25,1],[26,0,26,1],[26,2,26,3],[27,0,27,1],[27,2,27,3],[28,0,28,1],[28,2,28,3],[30,2,30,3],[31,2,31,3],[32,2,32,3],[33,2,33,3],[34,2,34,3],[35,2,35,3],[43,1,43,3],[44,1,44,3],[45,2,45,3]]}
["PROVINCIAL ADMINISTRATION OF KWAZULU-NATAL"]
["DEPARTMENT OF PUBLIC WORKS"]
[{"$nulls":3}," "]
[]
[]
[]
[]
[]
[]
["BILLS OF QUANTITIES"]
[]
["with GCC for Construction Works - Second Edition 2010"]
[]
["RETURNABLE DOCUMENT"]
["FLASH DRIVE"]
["PHASE 14: STORM DAMAGED PROGRAMME: REPAIRS AND RENOVATIONS TO STORM DAMAGED SCHOOLS THROUGHOUT THE PROVINCE OF KWAZULU-NATAL: ETHEKWINI REGION: CLUSTER 90: MONQONDO PRIMARY SCHOOL - OPEN BIDS                                                                                                                                                                                                                                                                        "]
["SCHOOL NAME","WIMS NO.","CONTRACT PERIOD","TYPE OF CONTRACT"]
["MANQONDO PRIMARY SCHOOL","063384","6 CALENDAR MONTHS","OPEN"]
[]
[]
["Engineer/Principal Agent",null,"Quantity Surveyor"]
["Ilifa/Bingelela Consulting Professionals JV ",null,"Bingelela Consulting Professionals"]
["P.O. Box 102278",null,"P.O. Box 102278"]
["Meerensee",null,"Richards Bay"]
["Richards Bay",null,3900]
[3900]
["035 7534580 - Tel Number",null,"035 753 4580 - Tel Number"]
["jrichards@bingelela.com",null,"jrichards@bingelela.com"]
[]
[]
["Employer:",null,"Region:"]
["Head: Public Works",null,"Head Public Works: Operations"]
["KZN Department of Public Works",null,"KZN Department of Public Works"]
["Private Bag X 9041",null,"X9041"]
["Pietermaritzburg",null,"Pietermaritzburg"]
[3200,null,"3200"]
["Tel Number:     033 - 355 5569",null,"Tel Number:","033 - 355 5569"]
["Fax Number:    N/A",null,"Fax Number:","N/A"]
[]
["Bid Number:           ZNTD 05381W",null,"Project Code:","063384"]
["CIDB Grading         4GB or higher",null,"Document Date:","As per Tender Advert"]
["ECDP Number:        N/A",null,"Contract Period:","6 Calendar Months"]
[]
["Bidding Entity:"," "]
["CIDB Registration number:"]
["Central Suppliers Database Registration Number: "]

{"sheet":"BOQ Manqondo PS","index":1,"n_rows":715,"n_cols":5,"rows_kept":715,"merged":[[0,0,0,4],[1,2,1,3],[2,2,2,3],[3,1,3,4],[4,0,4,4]]}
[{"$f":"'Cover Page-Flash drive'!A16:D16","v":"PHASE 14: STORM DAMAGED PROGRAMME: REPAIRS AND RENOVATIONS TO STORM DAMAGED SCHOOLS THROUGHOUT THE PROVINCE OF KWAZULU-NATAL: ETHEKWINI REGION: CLUSTER 90: MONQONDO PRIMARY SCHOOL - OPEN BIDS                                                                                                                                                                                                                                                                        "}]
["SCHOOL NAME","WIMS NO.","CONTRACT PERIOD",null,"TYPE OF CONTRACT"]
[{"$f":"'Cover Page-Flash drive'!A18","v":"MANQONDO PRIMARY SCHOOL"},{"$f":"+'Cover Page-Flash drive'!B18","v":"063384"},{"$f":"'Cover Page-Flash drive'!C18","v":"6 CALENDAR MONTHS"},null,{"$f":"+'Cover Page-Flash drive'!D18","v":"OPEN"}]
[{"$f":"'Cover Page-Flash drive'!A44","v":"Bidding Entity:"},{"$f":"+'Cover Page-Flash drive'!B44","v":" "}]
["BIDDERS TO NOTE THAT ALL FIELDS HIGHLIGTHED IN YELLOW TO BE FILLED IN ONLY"]
["DESCRIPTION","UNIT","QTY","RATE","AMOUNT"]
["BILL NO. 1 PRELIMINARIES (PROVISIONAL)"]
["BUILDING AGREEMENT AND PRELIMINARIES"]
[]
["See C2.2 - Preliminaries for GCC for Construction works - 2nd Edition (2010)"]
["Preliminaries.","Item",1,0,{"$f":"+C11*D11","v":0}]
["Total for Bill No. 1",{"$nulls":3},{"$f":"+E11","v":0}]
[]
["BILL NO. 2"]
["ALTERATIONS (PROVISIONAL)"]
[]
["MODEL PREAMBLES The tenderer is referred to the \"Model Preambles for  Trades 2008\" for supplementary and comprehensive expansion of descriptions, appropriate provision for which shall be deemed to have been included in all relevant rates"]
[]
["SUPPLEMENTARY PREAMBLES  View  Before submitting his tender the Contractor shall visit the site and satisfy himself as to the nature and extent of the work to be done and the value of the materials contained in the buildings or portions of the buildings to be demolished. No claim for any variations of the contract sum in respect of the nature and extent of the work or of inferior or damaged materials will be entertained  Existing Furniture, Equipment, etc  The Contractor shall not remove or damage any furniture, equipment or similar items that belong to the Department except when specifically described. The Contractor must give the Principal Agent sufficient notice if the removal of any items are required before any prescribed alterations can be done"]
[]
["Damage to existing finishesThe Contractor will be held responsible for all damage however caused to existing finishes and fittings, etc. and he must make good all damage at his own expense to the approval of the Principal Agent Breaking down, demolition and alteration activities and tasks, hacking off of existing plaster, etc. is to be executed with care so as to prevent damage to remaining floor and wall surfaces and finishes (where these are to be retained). Tenders will be deemed to include allowance for any necessary protection of existing surfaces and structures as may be necessary to effect the above, as the cost of repairing damage to existing surfaces and structures will be solely for the Contractors accountResponsibility for siteThe Contractor is to note that upon possession of the site by himself, and extending until practical completion is achieved, he is solely responsible for the site, site security, general upkeep and cleaning of the site and all other responsibilities in maintaining a construction site in conformance with but not limited to, the Construction Regulations 2014, all local by-laws, all user client regulations and procedures. Tenderers are therefore urged to study all available material and to investigate the site fully and areas contiguous to the site, in order to determine the range and extent of responsibility. No additional monetary and/or time claims will be entertained in respect of the aboveExplosivesNo explosives whatsoever maybe used for demolition purposes unless otherwise statedGeneralThe Contractor shall carry out the whole of the works with as little mess and noise as possible and with a minimum amount of disturbance to adjoining classroom blocks and their students. He shall provide proper protection of the works and provide, erect and remove when directed, any temporary tarpaulins that may be necessary during the progress of the works, all to the satisfaction of the Principal AgentWater supply pipes and other piping that may be encountered and found necessary to disconnect or cut, shall be effectively stopped off or grubbed up and removed, and any new connections that may be necessary shall be made with proper fittings, to the satisfaction of the Principal AgentDoors, fanlights, fittings, frames, linings, etc. which are to be re-used shall be thoroughly overhauled before refixing, including taking off, easing and rehanging, cramping up, re-wedging as required and making good cramps, dowels, etc., and easing, oiling, adjusting and repairing ironmongery as necessary, replacing any glass damaged in removal or subsequently and stopping up all nail and screw holes with tinted plastic wood to match timber, unless otherwise described. Re-painting or re-varnishing is given separately\"Taking out and removing doors, windows, etc\" implies that the door, etc. is to be carefully taken down together with the fame, linings, architraves, window sills, etc. complete and where brick lintels occur, it must be supported and propped until the openings are built up or new doors or windows built in positionPrices for taking out and removing doors and frames shall include for removing door stops, cabin hooks, etc. and making good floor and wall finishes to match existing."]
[]
["\"Forming openings\" for doors or windows, etc. implies that the plaster or any other covering is to be hacked off and an opening formed sufficient in size to receive the building in of the frame and cramps, and the forming of new damp proof courses, lintels, sills, etc. After building in of the new frame, the opening is to be built up against the frame, plaster or faced brickwork to be made good both sides and reveals and floor screeds prepared for finishings to match existing  \"Making good\" implies that all necessary repairs are to be made to reinstate articles that may be damaged through the removal or otherwise, and the supplying of any new materials to match existing work, and is to include any necessary repairs to adjacent finishings such as floors, skirtings, plaster, painting, etc. and such making good is to match adjoining work in all respects and in all trades  The Contractor will be required to take all dimensions affecting the existing buildings on the site and he will be held solely responsible for the accuracy of all such dimensions where used in the manufacture of new items (doors, windows, fittings, etc.)  The Contractor is to acknowledge that sequencing of the work will be necessary to accommodate the operational aspects of the school. The Contractor is to accordingly factor the above requirement in the construction programme and pricing  \"Breaking down and removing\" walls, etc. implies that the wall is to be taken down to the extent shown on the drawings, or as may be described, and that all necessary shoring is to be provided and allowed for to ensure the safety of the building during the pulling down, or until new walls where disturbed or affected by the removal, are to be made good and left ready for plaster or other finishings as described  Where removal is included in the heading, sub-heading or item description, prices shall be deemed to include for the necessary costs of removal and appropriate disposal of materials including, but not limited to labour, transportation and disposal costs. No further claims in this regard will be entertained  \"Building up openings\" implies that after the removal of any doors, windows or screens that may be described to be taken down, the opening is to be filled up solid (or to the thickness as shown) with new brickwork and is to include all necessary cutting away to form toothings to thoroughly bond to the new work and new finishes to both sides as described  Removal of asbestos material  The removal of asbestos shall be carried out by a certified entity, registered in accordance with Occupational Health and Safety Act, 1993 - Asbestos Regulations 2001 and all necessary precautions must be taken when working with and disposing of asbestos cement products and the disposal of waste water resulting from cleaning operations, etc.  Asbestos in all forms/building elements that is to be removed, shall be carried out strict accordance with aforementioned regulation and a certificate issued by the entity as contemplated in the above, shall be provided per block for the removal thereof, where the term block shall in this context refer to any single, free standing building structure, regardless of size or purpose  Corresponding disposal certificates shall be issued by the facility at which the asbestos is disposed off, with said facility to, prior to the disposal of any asbestos material provide satisfactory proof that the facility is duly registered and fully compliant in terms of the act, to receive the asbestos material  Under no circumstances is the Contractor nor any of his duly authorised representatives to sell and/ or give away asbestos material to any member/s of the school community, the community in general or the public at large. Should this be found to be occurring, the Contractor will be held responsible contractually and may further be prosecuted criminally  The cost for complying with the above, and all requirements of regulation as reflected above is to be priced for in terms for removal of asbestos material. No further claims in this regard will therefore be entertained"]
[]
["REMOVAL OF EXISTING WORK"]
["Breaking up and removing concrete"]
["Unreinforced concrete surface beds ","m3",6,null,{"$f":"+D27*C27","v":0}]
[]
["Carefully breaking down and removing from site"]
["Half brick walls in beamfilling ","m2",37,null,{"$f":"+D30*C30","v":0}]
["One brick walls in beamfilling ","m2",25,null,0]
[]
["Carefully take out and remove"]
["Timber single door and steel frame 813 x 2032mm high overall from one brick wall to remain, including temporary propping and preparing opening to receive new frame (elsewhere measured) ","No",3,null,{"$f":"+D34*C34","v":0}]
["Door lock and furniture and preparing to receive new (elsewhere measured)","No",8,null,{"$f":"+D35*C35","v":0}]
["Gypsum plasterboard or fibre cement ceilings including cornices and cover strips from brandering to remain, including preparing branders for new ceiling (elsewhere measured) ","m2",590,null,0]
[]
["Taking off/out/down and removing from site"]
["Chalkboard and frame exceeding 2.5m2 and not exceeding 5m2, including making good to plaster, etc.","No",6,null,{"$f":"+D39*C39","v":0}]
["Pinboard and frame exceeding 2.5m2 and not exceeding 5m2, including making good to plaster, etc.","No",7,null,0]
["Asbestos roof sheeting including timber purlins, underlay, etc complete and the provision of a certificate of safe disposal for asbestos. (measured on flat) ","m2",170,null,0]
["Sheet iron roof sheeting including timber purlins, underlay, etc complete. (measured on flat) ","m2",484,null,0]
["uPVC, fibre-cement or sheet metal rainwater pipes and holder bats ","m",10,null,0]
["uPVC, fibre-cement or sheet metal rainwater gutters ","m",69,null,0]
["Fibre-cement fascia and barge boards ","m",102,null,0]
[]
["Carefully taking out and removing doors and frames from brickwork to remain (new door and frame measured elsewhere)"]
["Timber single door and frame not exceeding 2,5m² ","No",4,null,{"$f":"+D48*C48","v":0}]
["Steel security gate and frame not exceeding 2,5m² ","No",4,null,{"$f":"+D49*C49","v":0}]
[]
["Carefully taking out and removing"]
["Glass from steel windows including cleaning out rebates and preparing for new glass (elsewhere measured)","m2",17,null,{"$f":"+D52*C52","v":0}]
["Putty from existing glazed window frames, prepare rebates for and re-putty.","m",145,null,{"$f":"+D53*C53","v":0}]
["Window sliding stay","No",23,null,{"$f":"+D54*C54","v":0}]
["Window latch","No",23,null,{"$f":"+D55*C55","v":0}]
["Air vents","No",4,null,{"$f":"+D56*C56","v":0}]
[]
["Taking out/off and removing sanitary fittings including making good wall finishes, temporarily stopping off services and re-connecting to new fittings (paintwork & new fittings elsewhere measured)"]
["Polyethylene pit WC pedestal and footpiece and preparing opening to receive new (elsewhere measured) ","No",6,null,{"$f":"+D59*C59","v":0}]
[]
["PREPARATORY WORK TO EXISTING SURFACES"]
["Hack up/off and remove floor screeds, plaster and prepare surfaces for new"]
["25mm Screed from floors","m2",56,null,{"$f":"+D63*C63","v":0}]
[]
["REMEDIAL WORK"]
["Make good internal cement plaster"]
["Chase out plaster down to brick face ± 100mm wide either side of crack to form recess, insert galvanised chicken mesh strip and re-plaster with 1:4 cement mortar, including floating up smooth to match existing","m",26,null,{"$f":"+D67*C67","v":0}]
[]
["TEMPORARY BARRIERS, SCREENS, ETC"]
["Temporary barriers, screens, etc including removal and allow for re-use"]
["SANS approved weld mesh type temporary barrier fencing 1,5m high fixed to and including 100mm diameter gum poles set securely min 300mm deep in ground at maximum 3m spacing ","m",44,null,{"$f":"+D71*C71","v":0}]
[]
["TEMPORARY ACCOMMODATION"]
["Provide temporary accommodation units (park homes) for Educational Facilities during construction in phases as herein measured, including levelling of area, positioning on site, two tier steps for access and connected to electrical supply. Park homes to be standard classroom size and need to be minimum 7m x 7m or nearest standard size "]
["Rental of temporary accommodation unit approximate size 7m x 7m wide, including standard windows, burglar bars, curtains and tracks, two tier steps for access, light fittings and electrical certificate of compliance, for a period of Twelve (12) calender months ","No",1,null,{"$f":"+D75*C75","v":0}]
["Electrical Compliance Certificate","No",1,null,0]
["Transportation and establishment on site and de-establishment on completion, temporary accommodation units approximate size 7 x 7m ","No",1,null,0]
[]
["Total for Bill No. 2",{"$nulls":3},{"$f":"+E27+E30+E31+E34+E35+E36+E39+E40+E41+E42+E43+E44+E45+E48+E49+E52+E53+E54+E55+E56+E59+E63+E67+E71+E75+E76+E77","v":0}]
[]
["BILL NO. 3 "]
["EARTHWORKS (PROVISIONAL)"]
[]
["MODEL PREAMBLES  The tenderer is referred to the \"Model Preambles for Trades 2008\" for supplementary and comprehensive expansion of descriptions, appropriate provision for which shall be deemed to have been included in all relevant rates"]
[]
["SUPPLEMENTARY PREAMBLES  Nature of ground  The nature of the ground is assumed to be sandy, therefore  \"soft excavation\",  but possibly interspersed with \"intermediate material\" or \"hard rock\""]
[]
["Carting away  Descriptions of carting away of excavated material shall be deemed to include loading excavated material onto trucks directly from the excavations or, alternatively, from stock piles situated on the building site"]
[]
["Filling  Before any material is used for filling the full test results of such materials must be submitted to the Employer for his approval and prices are to include therefore. All filling material to be supplied by the Contractor , shall be found by him and shall be his sole responsibility."]
[]
["EXCAVATION, FILLING, ETC"]
["Excavation in soft material not exceeding 2 metres deep below natural or reduced ground level for"]
["Reduce levels under surface bed","m3",18,null,{"$f":"+D94*C94","v":0}]
[]
["Filling, etc"]
["Approved earth filling supplied by the Contractor, well watered and compacted in layers not exceeding 150mm to a density as specified"]
["G5 Filling under surface beds and compacted to 98% MOD AASHTO","m3",18,null,{"$f":"+D98*C98","v":0}]
[]
["River sand filling supplied by the Contractor"]
["25mm Thick under solid floors, etc.","m2",61,null,{"$f":"+D101*C101","v":0}]
[]
["Compaction of surfaces"]
["Scarify to a depth of 150mm and level and re-compact earth to 93% MOD AASHTO ","m2",61,null,{"$f":"+D104*C104","v":0}]
[]
["SOIL POISONING"]
[]
["Apply 'Chlorodane' or 'aldrin' soil insecticides in strict accordance with manufacturers instructions and SABS 1164-1165."]
["Termite poisoning of ground surfaces  under solid floors ","m2",61,null,{"$f":"+D109*C109","v":0}]
[]
["Total for Bill No. 3",{"$nulls":3},{"$f":"+E94+E98+E101+E104+E109","v":0}]
[]
["BILL NO. 4"]
["CONCRETE, FORMWORK & REINFORCEMENT (PROVISIONAL}"]
[]
["MODEL PREAMBLES  The tenderer is referred to the \"Model Preambles for Trades 2008\" for supplementary and comprehensive expansion of descriptions, appropriate provision for which shall be deemed to have been included in all relevant rates"]
[]
["SUPPLEMENTARY PREAMBLES"]
["Concrete"]
["In situ concrete  All concrete work will be done in accordance with the applicable departmental specifications and SABS 1200G and where any discrepancies occur the former shall take preference"]
[]
["Cement  Cement must be Portland cement in accordance with SABS 471, unless otherwise described"]
[]
["Formwork"]
["The vertical strutting shall be carried down to such construction as is sufficiently strong to afford the required support without damage and shall remain in position until the newly constructed work is able to support itself."]
[]
["Formwork to sides of bases, pile caps, ground beams, etc will only be measured where it is prescribed by the engineer for design reasons.  Formwork necessitated by irregularity or collapse of excavated faces will not be measured and the cost thereof shall be deemed to be included in the allowance for taking the risk of collapse of the sides of the excavations, provision for which is made in \"Earthworks\""]
[]
["Formwork must be considered to be propped up to heights not exceeding 3,5m high unless otherwise stated."]
["Where rough formwork has been used after stripping thereof the concrete shall immediately be well wetted and wire brushed whilst the concrete is still green and then slushed over with 2:1 cement grout to form a key for finishes.  Where smooth formwork is used, concrete surfaces shall be hacked adequately and a 13mm thick (3:1) sand cement plaster applied in one coat and finished smooth, even and level with a wood trowel at no extra cost to the employer.  Decorative features in concrete shall be priced as part of the formwok."]
[]
["REINFORCED CONCRETE"]
["Concrete Class 25/19 in "]
["Surface beds","m3",6,null,{"$f":"+D134*C134","v":0}]
[]
["TEST CUBES"]
["Allow for preparing set of three 152 x 152 x 152mm concrete test cubes cast from batches of concrete required for the contract as specified, made, stored, cured and tested in accordance with SABS methods 861 and 863 including use of approved cube moulds, transporting, paying all charges and submitting reports to Employer (Provisional)","No",1,null,{"$f":"+D137*C137","v":0}]
[]
["MOVEMENT JOINTS, ETC (PROVISIONAL)"]
["Saw cut joints and reaming "]
["3 x 25mm Saw cut joints in top of concrete ","m",31,null,{"$f":"+D141*C141","v":0}]
[]
["CONCRETE SUNDRIES"]
["Finishing top surfaces of concrete"]
["Power float finish to surface beds, slabs, etc ","m2",61,null,{"$f":"+D145*C145","v":0}]
[]
["STEEL REINFORCEMENT (PROVISIONAL)"]
["Mesh reinforcement in concrete surface beds, slabs, etc."]
["Mesh reinforcement ref 245","m2",61,null,{"$f":"+D149*C149","v":0}]
[]
["Total for Bill No. 4",{"$nulls":3},{"$f":"+E134+E137+E141+E145+E149","v":0}]
[]
["BILL NO. 5"]
["MASONRY (PROVISIONAL)"]
[]
["MODEL PREAMBLES  The tenderer is referred to the \"Model Preambles for Trades 2008\" for supplementary and comprehensive expansion of descriptions, appropriate provision for which shall be deemed to have been included in all relevant rates"]
[]
["SUPPLEMENTARY PREAMBLES  Sizes in descriptions  Where sizes in descriptions are given in brick units, \"one brick\" shall represent the length and \"half brick\" the width of a brick  Bricks  Clay and concrete bricks are to comply with NHBRC Part 2, Section 3  Bagged and sealed walls  Walls in two skins described as \"bagged and sealed\" shall be deemed to include having the outer face of the inner skin bagged with 1:6 cement and sand mixture and sealed with two coats bitumen emulsion waterproofing coating  Face bricks  Bricks shall be ordered timeously to obtain uniformity in size and colour"]
[]
["Hollow walls etc  Descriptions of hollow walls shall be deemed to include leaving every fifth perpend of the bottom course of the external skin open as a weep hole. "]
[]
["Pointing  All pointing of exposed joints to be concave"]
[]
["Samples  Samples of all masonry building units, except those of walls described as \"load bearing\", shall consist of a minimum of 6 units. Samples of building units to be used in walls described as \"load bearing\" shall consist of 30 units from every 30 000 units delivered to site"]
[]
["BRICKWORK"]
["Brickwork of NFP bricks in class II mortar: "]
["Half brick wall in beamfilling","m2",37,null,{"$f":"+D168*C168","v":0}]
["Half brick bund wall","m2",9,null,0]
["One brick wall in beamfilling","m2",25,null,0]
[]
["BRICKWORK SUNDRIES"]
["Galvanised hoop iron cramps, ties, etc"]
["30 x 1,6mm Roof tie 1,5m long with one end built 6 courses into brickwork and other end wrapped around and nailed to timber rafter ","No",112,null,{"$f":"+D174*C174","v":0}]
[]
["AIR BRICKS"]
["229x152mm Terra-cotta vermin proof air brick","No",4,null,{"$f":"+D177*C177","v":0}]
[]
["Total for Bill No. 5",{"$nulls":3},{"$f":"+E168+E169+E170+E174+E177","v":0}]
[]
["BILL NO. 6"]
["WATERPROOFING"]
[]
["PREAMBLESThe Model Preambles for Trades (2008 edition) as published by the Association of South African Quantity Surveyors shall be deemed to be incorporated in these bills of quantities and no claims arising from brevity of description of items fully described in the said Model Preambles will be entertained "]
[]
["Descriptions and Preambles Tenderers are referred to Trades to follow hereafter for preambles and full descriptions of materials and items not fully described in this Trade and which shall apply equally to work in this Trade, unless otherwise described."]
[]
["Trade Names and Proprietary Products: All descriptions or clauses where trades names or proprietary products are specified, are deemed to include the phrase \"or other approved\"."]
[]
["Waterproofing of roofs, basements, etc shall be laid under a ten year guarantee.  Waterproofing to roofs shall be laid to even falls to outlets etc with necessary ridges, hips and valleys. Descriptions of sheet or membrane waterproofing shall be deemed to include additional labour to turn-ups and turn-downs"]
[]
["DAMPPROOFING OF WALLS AND FLOORS"]
["375µm Brikgrip DPC embossed black polyethylene sheeting"]
["One layer to walls, under sills, etc.","m2",4,null,{"$f":"+D194*C194","v":0}]
[]
["250µm Gunplas USB Green polyethylene waterproof sheeting, with minimum 200mm overlaps at intersections, sealed at laps with Gunplas pressure sensitive tape"]
["One layer damp proofing under surface beds","m2",61,null,{"$f":"+D197*C197","v":0}]
[]
["JOINT SEALANTS ETC. (PROVISIONAL)"]
["\"Sikaflex Pro 3 I-Cure\" or similar approved joint sealant in"]
["10 x 10mm In expansion joints in floors","m",34,null,{"$f":"+D201*C201","v":0}]
["6 x 10mm Sealant in horizontal saw cut floor joint 13mm deep","m",65,null,0]
[]
["Total for Bill No. 6",{"$nulls":3},{"$f":"+E194+E197+E201+E202","v":0}]
[]
["BILL NO. 7"]
["ROOF COVERINGS (PROVISIONAL)"]
[]
["MODEL PREAMBLES  The tenderer is referred to the \"Model Preambles for Trades 2008\" for supplementary and comprehensive expansion of descriptions, appropriate provision for which shall be deemed to have been included in all relevant rates"]
[]
["SUPPLEMENTARY PREAMBLES Sheeting ProfileThe roof sheeting shall be GRS or similar approved IBR 686 profile from certified ZincAL® 0.55mm steel. A certificate verifying compliance shall be issued by the manufacturer. The profile shall have 5 trapezoidal ribs at 171.5mm centres giving a net cover of 686mm with each pan incorporating a stiffener rib. The rib height shall be 37mm"]
[]
["Material and Finish for IBR 686 Roof Sheeting  ZincAL AZ150 coated steel G550 with a ColorPLUS colour coated finish to one side with a Cool Grey backing coat "]
[]
["Fixing IBR 686 profile ZincAL AZ150  The sheeting shall be laid with side-laps on the leeward side of the prevailing wind direction. An approved side-lap sealant shall be incorporated on roofing with a pitch of less than 15 degrees. All fixing holes shall be drilled and not punched. Roof sheets shall be fixed by means of No.14 Topspeed Hex Head screws 65mm long for steel purlins or 90mm long for timber purlins and shall incorporate 19mm diameter galvanised washers with rubber gasket . Side-lap stitching shall be effected at no more than 600mm centres with 25mm long Topspeed Hex Head screws and shall incorporate 19mm diameter galvanised washers with rubber gasket."]
[]
["Roof sheets shall additionally be fixed through each rib to the furthermost eaves purlin as well as apex purlin by means of No.14 Topspeed Hex Head screws 65mm long for steel purlins or 90mm long for timber purlins and shall also incorporate 19mm diameter galvanised washers with rubber gasket."]
[]
["IBR 686 profile ZincAL AZ150 Flashings  Stop endings must be formed at apex to form a dam and the pan turned down to form drip. The roof sheeting shall be closed as necessary with purpose made flashings and shall incorporate serrated closers and poly closers where necessary. Flashing shall be fixed to roofing by means of No. 14 Topspeed Hex head screws 25mm long with 19mm diameter galvanised washers with rubber gaskets on roof and for side cladding"]
[]
["Safety  The contractor shall exercise special care when handling long length sheeting, particularly in windy conditions. Should work be interrupted for any reason, all loose sheeting and incomplete sections must be adequately secured against possible movement by wind and gravity"]
[]
["Installation  Every precaution shall be taken to prevent damage to roof sheets during all stages of construction. Duck boards should be used when necessary to protect the sheeting from damage. Sheeting which has become deformed or damaged in any way, should be replaced. Care shall be taken to ensure that no sheeting or flashing will be cut with abrasive disc on roof surfaces in order to prevent steel particles from penetrating coated surfaces"]
[]
["Handling and Storage  The contractor shall ensure that all materials used on site for cladding, etc. are transported, handled and stored in accordance with the manufacturer's recommendations. Material damaged shall be rejected and replaced with undamaged material at the contractor's expense. Repair of damaged material will not generally be permitted. Rates are to include for preventing damage and protecting sheets through all stages of construction"]
[]
["Guarantee  IBR 686 profile ZincAL AZ150 or equal approved sheeting shall be laid  in strict accordance with manufacturer's specifications by an approved contractor. The employer shall be provided with a ten year written guarantee on materials and a five year written guarantee on workmanship and water-tightness after final inspection of the roofs, by the manufacturer"]
[]
["Inspection Prior to Installation or ErectionBefore commencing with installation, the contractor shall verify that the following items have been checked and accepted: a. The entire structure or the portion thereof to be sheeted has been correctly aligned, levelled and groutedb. Purlins and sheeting rails are at the correct spacing and are within the specified tolerancesc. The corners of the roof are square and the wall framework is perpendicular or as specifiedd. No protrusions such as bolt heads, splice plates, cleats, etc. appear on the face of the frameworke. All members to which roofing and cladding are to be fixed in aesthetically sensitive areas are true and squaref. Paint and any other materials that may be incompatible with the sheeting, have been painted over or so dealt with that direct contact with the sheeting is avoidedg. The contact faces between the purlins or girts and the cladding are in the same plane. Should the alignment be inadequate, the contractor shall request instructions from the engineer before proceeding with the fixing of the cladding"]
[]
["Protrusion through Sheeted Surfaces  Protrusions such as pipes, ducts and the like, shall be adequately flashed where they pass through the sheeting surface. Where ribs have to be cut away to permit penetration, additional framing is to be installed as required to support the sheeting. Depending on the position of the penetration through the roof, special attention shall be given to back flashing the sheeting to the ridge or point of water entry. In all cases, all cutting and flashings shall be so arranged that adequate provision is made for the drainage of all troughs and corrugations"]
[]
["Quality Assurance  The manufacturer shall be assessed and certified as comply with ISO 9001:2008 Quality Management System"]
[]
["Cleaning of Roofs, etc  All debris arising from the fixing of the cladding shall be removed from the sheeting as the fixing progresses. In addition, off-cuts of insulation, surplus fasteners and sealants, mandrels from pop rivets, off-cuts of flashings and sheeting, surplus flashing, food packaging, cartoons, bottles, cans, etc. shall not be left on the roof or in the gutters. Care shall be taken to ensure that no such material enters, blocks or partially impedes the flow of water into the outlets, downpipes, etc."]
[]
["PROFILED METAL SHEETING AND ACCESSORIES"]
["Roof sheeting shall be IBR 686 roll-formed from certified ZincAL AZ150 coated steel G550 0.55mm (Heavy Industrial) with an approved colour ColorPLUS finish to one side and standard Cool Grey backing coat to other side, fixed in single lengths to steel/timber purlins/girts using class 3 fasteners in strict accordance with the manufacturer's specification for coastal areas by an approved Contractor (all bending of troughs to form dams and drips to be included in the rate for the sheeting)"]
["Roof covering with pitch not exceeding 25 degrees ","m2",722,null,{"$f":"+D239*C239","v":0}]
[]
["Flashings shall be manufactured from ZincAL AZ150 coated steel G550 0.55mm (Heavy Industrial) with an approved colour ColorPLUS finish to one side and standard Cool Grey backing coat to other side and fixed in strict accordance with the manufacturer's specification "]
["Ridge Cap 462mm girth 3 times bent including broad flute serrated closers and Poly-Closers","m",69,null,{"$f":"+D242*C242","v":0}]
["Sondor polyclosures to match profile of roof sheeting","m",138,null,{"$f":"+D243*C243","v":0}]
["Barge Flash 462mm girth 1 times bent ","m",102,null,{"$f":"+D244*C244","v":0}]
["Broad flute serrated closer to match profile of roof sheeting","m",138,null,{"$f":"+D245*C245","v":0}]
[]
["ROOF AND WALL INSULATION"]
["Approved heavy duty industrial grade double-sided fire retardant foil laminate under-roof insulation"]
["Insulation laid taut over trusses or rafters (at approximately 750mm centres) and fixed under purlins concurrent with roof covering including galvanised steel straining wires at 500mm centres.","m2",654,null,{"$f":"+D249*C249","v":0}]
[]
["Total for Bill No. 7",{"$nulls":3},{"$f":"+E239+E242+E243+E244+E245+E249","v":0}]
[]
["BILL NO. 8"]
["CARPENTRY AND JOINERY (PROVISIONAL)"]
[]
["MODEL PREAMBLES  The tenderer is referred to the \"Model Preambles for Trades 2008\" for supplementary and comprehensive expansion of descriptions, appropriate provision for which shall be deemed to have been included in all relevant rates"]
[]
["ROOF CONSTRUCTION"]
["Grade S5 Treated Sawn South African Pine"]
["38 x 114mm Rafters","m",48,null,{"$f":"+D260*C260","v":0}]
["38 x 114mm Bearer between trusses for gutter fixing ","m",35,null,0]
["50 x 76mm Cross bracing to trusses","m",327,null,0]
["50 x 76mm Barge board trimmer battens ","m",102,null,0]
["50 x 76mm Gable trims","m",102,null,0]
["50 x 76mm Purlins ","m",690,null,0]
["50 x 76mm Splayed eaves purlins","m",138,null,0]
["50 x 50mm Fascia stiffening purlins ","m",138,null,0]
["50 x 50mm Fascia hangers in short lengths","m",22,null,0]
[]
["ROOF SUNDRIES"]
["Two coats Carbolinium on sawn roof timbers","m2",227,null,{"$f":"+D271*C271","v":0}]
["Approved galvanised steel two way hurricane clips ","No",1120,null,{"$f":"+D272*C272","v":0}]
[]
["EAVES, VERGES, ETC"]
["Approved Fibre-cement Fascias & Barge Boards"]
["Fibre cement fascia boards, medium density plain, fittings and fixing accessories fixed to timber supporting structure with Ø4mm x 50mm long galvanised mild steel counter sunk screws or to steel supporting structure with Ø6mm x 30mm long galvanised mild steel bolts, nuts and washers (Supporting structure measured elsewhere), inclusive of plastic H-profile fascia joiners "]
["10 x 225mm Fascia boards fixed to timber supporting structure with 4mm diameter x 50mm long galvanised mild steel counter sunk screws ","m",138,null,{"$f":"+D277*C277","v":0}]
[]
["Fibre cement fascia boards, medium density plain (used as barge boards), fittings and fixing accessories fixed to timber supporting structure with Ø4mm x 50mm long galvanised mild steel counter sunk screws, or to steel supporting structure with Ø6mm x 30mm long galvanised mild steel bolts, nuts and washers (Supporting structure measured elsewhere), inclusive of plastic H-profile fascia joiners and cutting and waste at apex/ "]
["12 x 300mm Fascia boards fixed to timber supporting structure with Ø4mm x 50mm long galvanised mild steel counter sunk screws ","m",102,null,{"$f":"+D280*C280","v":0}]
[]
["FLUSH DOORS"]
["Semi-solid core flush panel door with hardwood edge strips and commercial ply finish suitable for painting both sides hung to steel frames:"]
["40mm Thick door, size 762 x 1982mm","No",4,null,{"$f":"+D284*C284","v":0}]
[]
["FRAMED DOORS, ETC."]
["Wrot Meranti framed, ledged and braced batten doors hung to steel frames:"]
["40mm Framed, ledged and braced batten door size 813 x 2032mm high of 40 x 110mm wide top rail and stiles, 20 x 150mm middle ledge, 20 x 225mm bottom ledge and 20 x 110mm braces ","No",3,null,{"$f":"+D288*C288","v":0}]
[]
["BUMPER RAILS"]
["Purpose made 200mm wide bumper rails ex 19mm shutterboard with slightly rounded exposed edges fixed to walls with countersunk and pelleted plugs and screws","m",178,null,{"$f":"+D291*C291","v":0}]
[]
["Total for Bill No. 8",{"$nulls":3},{"$f":"+E260+E261+E262+E263+E264+E265+E266+E267+E268+E271+E272+E277+E280+E284+E288+E291","v":0}]
[]
["BILL NO. 9"]
["CEILINGS, PARTITIONS & ACCESS FLOORING (PROVISIONAL)"]
["MODEL PREAMBLES The tenderer is referred to the \"Model Preambles for  Trades 2008\" for supplementary and comprehensive expansion of descriptions, appropriate provision for which shall be deemed to have been included in all relevant rates"]
[]
["SUPPLEMENTARY PREAMBLES  Descriptions  Items described as \"nailed\" shall be deemed to be fixed with hardened steel nails or pins or shot pinned to brickwork or concrete  Trade Names  Where trade names are specified equal materials approved by the Principal Agent may be used"]
[]
["BRANDERED CEILINGS"]
["Approved 9.5mm Gypsum plasterboard ceilings including 38 x 50mm sawn softwood brandering at 450mm centres in one direction to trusses"]
["Ceilings including 38 x50mm sawn softwood brandering at 450mm centres in one direction to trusses ","m2",590,null,{"$f":"+D303*C303","v":0}]
[]
["Cornices"]
["Approved 75mm paper-covered polystyrene core cornice glued to ceiling board and to wall with an approved acrylic filler and adhesive ","m",258,null,{"$f":"+D306*C306","v":0}]
[]
["Trapdoors"]
["Extra over ceiling for 600 x 600mm trap door of 32 x 44mm wrought hardwood rebated framing and 38 x 114mm sawn softwood kerb spiked to rafters, etc., and filled in with matching ceiling board in opening.  ","No",7,null,{"$f":"+D309*C309","v":0}]
[]
["Total for Bill No. 9",{"$nulls":3},{"$f":"+E303+E306+E309","v":0}]
[]
["BILL NO. 10"]
["IRONMONGERY (PROVISIONAL)"]
[]
["MODEL PREAMBLES The tenderer is referred to the \"Model Preambles for  Trades 2008\" for supplementary and comprehensive expansion of descriptions, appropriate provision for which shall be deemed to have been included in all relevant rates"]
[]
["SUPPLEMENTARY PREAMBLES  Keys/locks  Each lock is to be distinctly numbered with consecutive numbers and each key is to be stamped with corresponding number to the lock that it controls. All locks are to have two keys  Trade Names  Where trade names are specified equal materials approved by the Principal Agent may be used  Fixing  Fixing of ironmongery is deemed to be fixed to timber unless otherwise described"]
[]
["LOCKS AND HANDLES"]
["Approved door lock and handle set comprising satin chromed cast zinc handles and galvanised 4-lever mortice lock case","No",11,null,{"$f":"+D321*C321","v":0}]
["Approved silver anodised aluminium Indicator Bolt as per ASSA ABLOY Code: AL8294AS or similar","No",4,null,0]
[]
["HINGES, BOLTS, ETC."]
["Approved 38mm diameter rubber door stop, plugged and screwed to wall with 50mm long brass screw","No",4,null,{"$f":"+D325*C325","v":0}]
["Approved 150mm satin chrome plated brass cabin hook and eye fixed on and including 200 x 114 x 38mm Meranti block with chamfered edges and bolted to brickwork with two M13 x 100mm expansion bolts","No",4,null,{"$f":"+D326*C326","v":0}]
["Approved 175mm brass plated window sliding stay to match existing","No",23,null,0]
["Approved brass window latch to match existing","No",23,null,0]
[]
["PINNING BOARDS, WRITING BOARDS, PROJECTION SCREENS, ETC"]
["Vitrex or similar approved boards including all fixing to brickwork in accordance with the manufacturer's instructions"]
["Model 2100 chalkboard overall size 4800 x 1200mm high comprising two Code 2109 boards fixed side-by-side, complete with continuous anodised aluminium chalk rail","No",6,null,{"$f":"+D332*C332","v":0}]
["Model 2300, Code 2309 pinboard overall size 2400 x 1200mm high ","No",7,null,0]
[]
["Total for Bill No. 10",{"$nulls":3},{"$f":"+E321+E322+E325+E326+E327+E328+E332+E333","v":0}]
[]
["BILL NO. 11"]
["METALWORK (PROVISIONAL)"]
[]
["MODEL PREAMBLES The tenderer is referred to the \"Model Preambles for  Trades 2008\" for supplementary and comprehensive expansion of descriptions, appropriate provision for which shall be deemed to have been included in all relevant rates"]
[]
["Descriptions and Preambles Tenderers are referred to Trades to follow hereafter for preambles and full descriptions of materials and items not fully described in this Trade and which shall apply equally to work in this Trade, unless otherwise described."]
[]
["Trade Names and Proprietary Products: All descriptions or clauses where trades names or proprietary products are specified, are deemed to include the phrase \"or other approved\"."]
[]
["HOT DIPPED GALVANIZED STEEL DOOR FRAMES"]
["1,2mm Double rebated frames with mitred, welded and reinforced corners and fitted with one-and-a-half pairs of 100mm five-knuckle loose pin steel hinges for each door or each leaf of double doors, and with one pair of 75mm five-knuckle loose pin steel hinges for each fanlight, suitable for half brick walls:"]
["Frame for door 762 x 2032mm high","No",4,null,{"$f":"+D348*C348","v":0}]
[]
["1,2mm Double rebated frames with mitred, welded and reinforced corners and fitted with one pair of 100mm five-knuckle loose pin steel hinges for each door or each leaf of double doors, suitable for one brick walls:"]
["Frame for door 813 x 2032mm high","No",3,null,{"$f":"+D351*C351","v":0}]
[]
["HOT DIP GALVANISED WELDED SECURITY GATES"]
["Security gate comprising 40 x 40 x 3mm square tubing frame with two 40 x 6mm horizontal flat bar rails and 19mm diameter vertical bars equally spaced at 110mm centres, hung to and including 45 x 45 x 3mm square section frame with three 25mm diameter x 80mm bullet hinges, bolted to wall with eight M13 x 100mm expansion bolts with heads tack welded to prevent removal, including padlock sliding pin and holding lug, complete with suitable approved  padlock "]
["Gate size 843mm x 2250mm high ","No",4,null,{"$f":"+D355*C355","v":0}]
[]
["STEEL MESH REINFORCEMENT BURGLAR PROOFING"]
["Mesh reinforcement in confined roof space above ceilings fixed to timber truss tie-beams"]
[]
["Mesh reinforcement Ref. 617","m2",136,null,{"$f":"+D360*C360","v":0}]
[]
["PROVISIONAL AMOUNTS"]
["Smart Interactive Board"]
["Allow the Provisional Amount of R120 000.00 for the supply and installation of one (1) smart interactive board (screen) to be installed in the team teaching or general multi-purpose classroom or standard classroom as directed  ","Item",1,{"v":120000,"d":"R120,000.00"},{"$f":"+C364*D364","v":{"v":120000,"d":"R120,000.00"}}]
["Allow for Profit and Attendance on the abovementioned Amount","%",{"v":0,"d":"0%"},{"$f":"+E364","v":{"v":120000,"d":"R120,000.00"}},{"$f":"+D365*C365","v":0}]
["Allow the Provisional Amount for training to be given on the functioning of the smart interactive screen  ","Item",1,{"v":10000,"d":"R10,000.00"},{"$f":"+C366*D366","v":{"v":10000,"d":"R10,000.00"}}]
["Allow for Profit and Attendance on the abovementioned Amount","%",{"v":0,"d":"0%"},{"$f":"+E366","v":{"v":10000,"d":"R10,000.00"}},{"$f":"+D367*C367","v":0}]
[]
["Total for Bill No. 11",{"$nulls":3},{"$f":"+E348+E351+E355+E360+E364+E365+E366+E367","v":{"v":130000,"d":"R130,000.00"}}]
[]
["BILL NO. 12"]
["PLUMBING & DRAINAGE (PROVISIONAL)"]
[]
["MODEL PREAMBLES The tenderer is referred to the \"Model Preambles for  Trades 2008\" for supplementary and comprehensive expansion of descriptions, appropriate provision for which shall be deemed to have been included in all relevant rates"]
[]
["RAINWATER DISPOSAL "]
["0.6mm Extruded seamless aluminium gutters pre-painted with double coat Polymer Silicon baked enamel "]
["150 x 150mm Square gutter fixed to falls with aluminium brackets screwed to eaves purlin/false timber through fibre cement fascia with galvanised screws OR bolted to fibre cement fascia or steel supporting structure with galvanised bolts, nuts and washers at 500mm centres ","m",138,null,{"$f":"+D378*C378","v":0}]
["Extra over gutter for 100 x 75mm outlet with nozzle ","No",10,null,0]
["Extra over gutter for drop-box ","No",10,null,0]
["Extra over gutter for stop end ","No",20,null,0]
[]
["0.6mm Aluminium down pipes pre-painted internally and externally with double coat Polymer Silicon baked enamel "]
["100 x 75mm Down pipe secured to wall at 1000mm centres with and including pre-painted aluminium straps fixed to walls with nail plugs and/or fixed to steel supports with galvanised self-tapping screws ","m",35,null,{"$f":"+D384*C384","v":0}]
["Extra over down pipe for bend","No",20,null,0]
["Extra over down pipe for shoe","No",10,null,0]
[]
["SANITARY FITTINGS"]
["The following in waterless sanitary fittings fixed in position complete:"]
["\"Atlas Plastics\" Model V.I.P. 200 pit pedestal and footpiece complete with seat and lid and setting in position over opening in concrete slab ","No",6,null,{"$f":"+D390*C390","v":0}]
[]
["SANITARY PIPE WORK"]
["uPVC (S&V) pipes to comply with SABS 967"]
["110mm Pipe in ventilation stack 3.5m high fixed vertically to wall at 1000mm centres with and including aluminium brackets ","No",4,null,{"$f":"+D394*C394","v":0}]
[]
["Extra over uPVC (S&V) pipes for fittings:"]
["110mm Air vent cowl ","No",4,null,{"$f":"+D397*C397","v":0}]
[]
["PROVISIONAL AMOUNT"]
["Desludge Septic Tank"]
["Allow the Provisional Amount of R10 000.00 for the desludging of existing Ablution Block Septic Tank  ","Item",1,{"v":10000,"d":"R10,000.00"},{"$f":"+D401*C401","v":{"v":10000,"d":"R10,000.00"}}]
["Allow for Profit and Attendance on the abovementioned Amount","%",{"v":0,"d":"0%"},{"$f":"+E401","v":{"v":10000,"d":"R10,000.00"}},{"$f":"+D402*C402","v":0}]
[]
["Total for Bill No. 12",{"$nulls":3},{"$f":"+E378+E379+E380+E381+E384+E385+E386+E390+E394+E397+E401+E402","v":{"v":10000,"d":"R10,000.00"}}]
[]
["BILL NO. 13"]
["ELECTRICAL WORK (PROVISIONAL)"]
[]
["MODEL PREAMBLES The tenderer is referred to the \"Model Preambles for  Trades 2008\" for supplementary and comprehensive expansion of descriptions, appropriate provision for which shall be deemed to have been included in all relevant rates"]
[]
["REPAIRS AND RENOVATIONS TO EXISTING BUILDINGS"]
[]
["Repair / Replace the electrical installation in  Classrooms, Admin Blocks, Toilets, etc. that is to be refurbished or non-compliant in terms of SANS 10142-1. Note that all asbestos roofs on building are to be removed and replaced. Necessary safety gear to be used when working in this environment"]
[]
["The contractor is to Remove and replace existing Lighting fixtures, DB's and other outlets that are affected or non-compliant in terms of SANS codes. Rates are to include for removing and re-fixing existing fixtures to new positions where applicable. All installations to be made safe in terms of SANS 10142-1"]
[]
["CONDUIT AND CONDUIT BOXES"]
["Remove & replace PVC conduit in walls, floors or ceiling spaces as specified for lighting, small power and other auxiliary outlets, including couplings, bushes, bending, drawboxes and fixing, etc in accordance with non-metallic conduit and accessories as per SANS 950"]
["P8000 Galvanised Trunking complete with Cover","m",200,null,{"$f":"+D419*C419","v":0}]
["20mm PVC conduit ","m",320,null,0]
["20mm Bozal conduit","m",40,null,0]
["20mm PVC round boxes complete with lids & mounting screws","No",40,null,0]
["100 x 100 x 50 mm deep mounted on surface for isolators / SSO units","No",20,null,0]
[]
["DUCTING AND POWER SKIRTING"]
["Supply and installation of surface mounted power skirting as specified in detail specification, complete with cover plates - plug assemblies not included."]
["3 Compartment galvanised and painted power skirting (Grey) ","m",70,null,{"$f":"+D427*C427","v":0}]
["Power skirting Inside and Outside corners","No",10,null,{"$f":"+D428*C428","v":0}]
["Power skirting End Caps","No",10,null,{"$f":"+D429*C429","v":0}]
["Power skirting Cover Plates","No",10,null,{"$f":"+D430*C430","v":0}]
["Power skirting Conduit Entry Boxes","No",10,null,{"$f":"+D431*C431","v":0}]
[]
["CIRCUIT WIRING"]
["Supply and install copper PVC insulated conductors in conduit or trunking system in walls, floors or in roof space for lights, plugs and power points, including connection to switches and equipment."]
["1,5 mm²","m",3600,null,{"$f":"+D435*C435","v":0}]
["2,5mm² ","m",3600,null,0]
["4,0mm² ","m",3600,null,0]
[]
["LIGHTING EQUIPMENT"]
["Remove existing light fitting & replace with existing or with new lighting fixtures. Located in ceilings and/or walls"]
["Re-install Existing Fittings"]
["Remove and re-install existing light fitting due to replacement of ceilings or due to loose fixing in ceiling or wall.","No",52,null,{"$f":"+D442*C442","v":0}]
[]
["Supply & Install New Light Fittings"]
["Type A. 1500mm (5ft) Surface mounted,  open channel fluorescent luminaire. Metal Body. 2 x T5 fluorescent lamps complete with electronic control gear and telescopic ends. Minimum 8750 Lumens. 2 x 35W Cool White. Colour white or as per architect.","No",48,null,{"$f":"+D445*C445","v":0}]
["Type B. Wall mounted  die-cast aluminium body with glass diffuser. IP 65, Corrosion and vandal resistant luminaire, complete with 2 x CFL lamp, electronic control gear and all necessary accessories. All external bolts to be stainless steel. Minimum 2400 lm.2 x 18W Cool White. Colour black or as per architect.","No",18,null,{"$f":"+D446*C446","v":0}]
["Type C. Ceiling/Wall mounted  high pressure die-cast aluminium base with opal high-impact acrylic diffuser. Minimum IP 65, Corrosion and vandal resistant luminaire complete with 2x CFL lamps, electronic control gear and all necessary accessories. All external bolts to be stainless steel. Minimum 2400lm.2 x 18W Cool White. Colour black or as per architect.","No",6,null,{"$f":"+D447*C447","v":0}]
["Type D. Post Top mounted luminaire, Including pole, with  glass-filled nylon dome with non-discolouring high-impact acrylic diffuser. High-pressure die-cast aluminium spigot base. Minimum IP 65, Corrosion and vandal resistant luminaire complete with 1x 18W CFL lamp, electronic control gear and all necessary accessories. All external bolts to be stainless steel. Minimum 1200lm. Cool White. Colour Dark Grey or as per architect. Mounted on 3.6m Pole at 3m mounting height. Price to include pole complete with fitting.","No",1,null,0]
["Type E. Pole mounted flood-light luminaire, including pole, 2 x High-pressure die-cast aluminium light fitting. Heat & impact resistant diffuser. Minimum IP 65 compartments for lamp and control gear, with stainless steel screws including finger grips for aiming luminaire.  All external bolts to be stainless steel. Minimum 20 000lm. Cool White. Colour Black or as per architect. Mounted on 4.6m Pole at 4m mounting height. Price to include pole, complete with 2x 250W Metal Halide fittings, lamp, electronic control gear and all necessary accessories.","No",1,null,0]
[]
["Re-lamp existing lights with lamps as noted below:"]
["230V, 11W ES/BC Compact Fluorescent lamps. Colour Cool White.","No",48,null,{"$f":"+D452*C452","v":0}]
["230V, 1500mm T5 Fluorescent Tubes. Colour Cool White ","No",48,null,0]
[]
["MISCELLANEOUS"]
["Administration Block Alarm System including connection cables ","No",1,null,{"$f":"+D456*C456","v":0}]
["Telephone Distribution Board","No",1,null,{"$f":"+D457*C457","v":0}]
["School Siren and Push Button with Latch in Timer ","No",1,null,{"$f":"+D458*C458","v":0}]
["50mm PVC Sleeve","m",10,null,{"$f":"+D459*C459","v":0}]
[]
["DISTRIBUTION BOARDS"]
["Remove and replace distribution boards, complete with doors where applicable, frames, subframes, chassis, fixtures, fittings, spare space, busbar etc. as per specification and drawings. All shop drawings to be approved prior to manufacture . Refer to Schematic for full details and cicuit breaker count."]
["Wall mounted Fan","No",5,null,{"$f":"+D463*C463","v":0}]
["16 Way Surface Mounted","No",4,null,0]
["12 Way Surface Mounted","No",3,null,0]
["Allow for Municipal Eskom Meter","SUM",1,null,{"$f":"+D466*C466","v":0}]
[]
["Upgrade DB to bring up to SANS standard and Supply & Install circuit breakers as required. All circuit breakers to match DB kA rating with minimum  6kA Schneider/ CBI breakers. To include all wiring, labels, blanks and safety labels for DB."]
["15Amp single phase Circuit breaker ","No",16,null,{"$f":"+D469*C469","v":0}]
["20Amp single phase Circuit breaker ","No",16,null,{"$f":"+D470*C470","v":0}]
["60Amp double pole Earth Leakage Unit","No",4,null,{"$f":"+D471*C471","v":0}]
["Class II 10kA single pole SPD unit","No",4,null,{"$f":"+D472*C472","v":0}]
["60Amp three phase 4-pole main Circuit Breaker ","No",4,null,{"$f":"+D473*C473","v":0}]
["40Amp Double pole Single Phase Main Circuit breaker","No",4,null,{"$f":"+D474*C474","v":0}]
[]
["LIGHT SWITCHES "]
["Remove and replace, 16 Amp light switches in existing flush 50 x 100 x 50mm boxes, including white coloured cover plates."]
["Single Lever, one way switch ","No",24,null,{"$f":"+D478*C478","v":0}]
["Two Lever one way switch ","No",24,null,{"$f":"+D479*C479","v":0}]
["IP65 Single Lever switch","No",4,null,0]
["One Lever two way switch","No",8,null,0]
[]
["SWITCHED SOCKET OUTLETS"]
["Remove and replace 16Amp switched socket outlets in existing 100 x 100 x 50mm boxes with white coloured cover plates"]
["16 Amp 3 pin double SSO (White) ","No",16,null,{"$f":"+D485*C485","v":0}]
["16 Amp 3 pin Single (White) ","No",16,null,0]
[]
["Supply, installation and connection of 16Amp switched socket outlets in single, two or three compartment power skirting"]
["Provisional - for changes in Computer Room"]
["16 Amp 3-pin single (White) ","No",1,null,{"$f":"+D490*C490","v":0}]
["16Amp 3 pin dedicated complete with plug top (Red)","No",24,null,{"$f":"+D491*C491","v":0}]
["Cradles and Blank covers for telephone/data outlet points.","No",4,null,{"$f":"+D492*C492","v":0}]
["RJ45 Data Outlet complete with cover","No",24,null,{"$f":"+D493*C493","v":0}]
["RJ11 Telephone Outlet complete with Cover","No",24,null,{"$f":"+D494*C494","v":0}]
[]
["ISOLATORS "]
["Remove and replace isolator in GRP extension box. To be supplied complete with 100 x 100 x 50mm box"]
["30 Amp 2 pole 230V ","No",8,null,{"$f":"+D498*C498","v":0}]
["30 Amp 2 pole 230V, weather proof ","No",8,null,0]
[]
["PHOTO CELLS "]
["Replace 10 Amp day light switch per SANS 1777","No",8,null,{"$f":"+D502*C502","v":0}]
[]
["EARTHING, BONDING AND LIGHTNING PROTECTION"]
["Install Earthing & Lightning Protection per SANS 10313, 62305 and 10142. To be undertaken by specialist earthing and lightning contractor. Refer to specification Part A. Item 14"]
["Ø8mm Aluminium lightning protection conductor. To include all holding down clamps, down conductors and bonding to earth ring","m",120,null,{"$f":"+D506*C506","v":0}]
["Bond the metal roofs at each corner of the building  bonded to the earth electrode in the ground. To include lugs, brass screws, nuts and washers.","No",32,null,{"$f":"+D507*C507","v":0}]
["Provide test joint points at 500mm AFGL at each down conductor location. The test joint shall comprise of two lugs and a 10mm galvanized steel bolt and nut enclosed in a suitable GRP enclosure. ","No",32,null,{"$f":"+D508*C508","v":0}]
["50mm² stranded BCEW down conductor in surface mounted PVC conduit complete with saddles.","m",120,null,{"$f":"+D509*C509","v":0}]
["1200mm x 16mm diameter Copper earth electrodes driven in ground, including 'Cadweld' joining sleeves as required.","No",32,null,{"$f":"+D510*C510","v":0}]
[]
["LOW VOLTAGE CABLES"]
["Supply and installation and termination of copper PVC/SWA/ECC cables laid in ducts, trenches, horizontal racks or vertical ducts.  Rates shall include the supply and fixing of supports with regard to installation of cables. Rates shall include the PVC cable ties  as required. All cables are Copper PVC/SWA/ECC cables per SANS 1507."]
["6.0mm x 3 Core  ECC.","m",100,null,{"$f":"+D514*C514","v":0}]
["6.0mm x 3 Core  ECC - (Termination)","No",2,null,0]
["16mm x 3 Core  ECC. ","m",100,null,0]
["16mm x 3 Core  ECC - (Termination)","No",2,null,0]
[]
["Trench Excavations including temporary support of sides, keeping excavation dry, bedding material, backfilling, compacting and testing as specified. All backfill material to be suitable as per SANS codes and engineers approval. Backfill material to be imported if necessary. Trench depth to be 500mm below finished ground level."]
["In soft or pickable soil ","m3",45,null,{"$f":"+D520*C520","v":0}]
["Soft Rock","m3",15,null,{"$f":"+D521*C521","v":0}]
["Hard Rock","m3",15,null,{"$f":"+D522*C522","v":0}]
["Warning tape installed 300mm below ground level, above cables in trench","m",150,null,{"$f":"+D523*C523","v":0}]
[]
["TESTING & COMMISSIONING"]
["Test and commission complete installation as per SANS 10142-1.","SUM",1,null,{"$f":"+D526*C526","v":0}]
["Provide Certificate of Compliance (CoC) as per SANS 10142-1. One for each DB and the associated circuits connected to the DB and one for the overall installation ","SUM",1,null,0]
["Provide Earthing certificate for entire site, to include earth resistance test of each down conductor earth electrode, measured by an Earthing specialist by means of an approved instrument. ","SUM",1,null,0]
["Remove all redundant equipment, store and dispose at an approved dump site. A disposal certificate to be supplied.","SUM",1,null,0]
[]
["Total for Bill No. 13",{"$nulls":3},{"$f":"+E419+E420+E421+E422+E423+E427+E428+E429+E430+E431+E435+E436+E437+E442+E445+E446+E447+E448+E449+E452+E453+E456+E457+E458+E459+E463+E464+E465+E466+E469+E470+E471+E472+E473+E474+E478+E479+E480+E481+E485+E486+E490+E491+E492+E493+E494+E498+E499+E502+E506+E507+E508+E509+E510+E514+E515+E516+E517+E520+E521+E522+E523+E526+E527+E528+E529","v":0}]
[]
["BILL NO. 14"]
["PLASTERING (PROVISIONAL)"]
[]
["MODEL PREAMBLES The tenderer is referred to the \"Model Preambles for  Trades 2008\" for supplementary and comprehensive expansion of descriptions, appropriate provision for which shall be deemed to have been included in all relevant rates"]
[]
["SCREEDS"]
["(1:4) Cement mortar screeds finished with a steel trowel on concrete:"]
["25mm Thick on floors ","m2",56,null,{"$f":"+D540*C540","v":0}]
[]
["INTERNAL PLASTER"]
["One coat (1:4) cement plaster finished with a steel trowel "]
["On walls","m2",80,null,{"$f":"+D544*C544","v":0}]
[]
["EXTERNAL PLASTER"]
["One coat (1:4) cement plaster finished with a wood trowel "]
["On walls","m2",80,null,{"$f":"+D548*C548","v":0}]
["On narrow widths ","m2",71,null,{"$f":"+D549*C549","v":0}]
[]
["Total for Bill No. 14",{"$nulls":3},{"$f":"+E540+E544+E548+E549","v":0}]
[]
["BILL NO. 15"]
["GLAZING (PROVISIONAL)"]
[]
["MODEL PREAMBLES  The tenderer is referred to the \"Model Preambles for Trades 2008\" for supplementary and comprehensive expansion of descriptions, appropriate provision for which shall be deemed to have been included in all relevant rates"]
[]
["SUPPLEMENTARY PREAMBLESGlazing Certificate of Compliance The Tenderer shall provide a Certificate of Compliance signed by a registered member of SAGGA, confirming that the glazing complies withSANS 10400-N:2012 "]
[]
["GLAZING TO STEEL WITH PUTTY"]
["6.38mm Clear Safety Glass"]
["Panes exceeding 0,1m² and not exceeding 0,5m²","m2",17,null,{"$f":"+D562*C562","v":0}]
[]
["Total for Bill No. 15",{"$nulls":3},{"$f":"+E562","v":0}]
[]
["BILL NO. 16"]
["PAINTWORK (PROVISIONAL)"]
[]
["MODEL PREAMBLES  The tenderer is referred to the \"Model Preambles for Trades 2008\" for supplementary and comprehensive expansion of descriptions, appropriate provision for which shall be deemed to have been included in all relevant rates"]
[]
["SUPPLEMENTARY PREAMBLES  Trade Names  Where trade names are specified, equal materials approved by the Principal Agent may be used  Colours, etc.  Unless otherwise described all paintwork shall be deemed to have colour value in excess of 7 on Munsell system in accordance with SANS 1091"]
[]
["PREPARATORY WORK TO EXISTING WORK  Previously painted metal surfaces  Surfaces shall be thoroughly rubbed and cleaned down. Blistered or peeling paint shall be completely removed down to bare metal  Previously painted wood surfaces  Surfaces shall be thoroughly cleaned down. Blistered or peeling paint shall be completely removed and cracks and crevices shall be primed, filled with suitable filler and finished smooth   "]
[]
["PAINTWORK TO PREVIOUSLY PAINTED WORK"]
["ON PLASTER, ETC."]
["Prepare and brush surface to remove all loose contaminants, clean down, make good cracks and minor defects with an approved interior/exterior filler paste, apply one coat approved all-purpose plaster primer, one coat approved universal undercoat and two coats approved durable and washable pure acrylic emulsion sheen paint on: "]
["Plastered walls internally","m2",935,null,{"$f":"+D578*C578","v":0}]
["Plastered walls externally","m2",750,null,0]
[]
["ON METAL"]
["Prepare and brush surface to remove all loose contaminants, clean and apply one coat approved galvanised iron primer and two coats approved water-based enamel paint on:"]
["Window frames (both sides measured) ","m2",171,null,{"$f":"+D583*C583","v":0}]
["Security gates (both sides measured) ","m2",4,null,{"$f":"+D584*C584","v":0}]
["Door frames ","m2",15,null,{"$f":"+D585*C585","v":0}]
[]
["ON WOOD"]
["Prepare, sand and apply three coats approved exterior clear low-gloss finish polywax sealer with UV-protection and water repellence, sanding lightly between coats on :"]
["Doors","m2",26,null,{"$f":"+D589*C589","v":0}]
[]
["PAINTWORK TO NEW WORK"]
["ON PLASTER, ETC."]
["Prepare and apply one coat approved all-purpose plaster primer, one coat approved universal undercoat and two coats approved durable and washable pure acrylic emulsion sheen paint on: "]
["Plastered walls externally","m2",62,null,{"$f":"+D594*C594","v":0}]
["Gypsum plasterboard ceilings, coverstrips, cornices, etc,. internally including priming and stopping up nail heads.","m2",590,null,0]
["Fibre-cement fascias & bargeboards","m2",128,null,0]
[]
["ON METAL "]
["Prepare and brush surface to remove all loose contaminants, clean and apply one coat approved galvanised iron primer and two coats approved water-based enamel paint on:"]
["Door frames","m2",6,null,{"$f":"+D600*C600","v":0}]
[]
["ON WOOD"]
["Prepare, sand and apply three coats approved exterior clear low-gloss finish polywax sealer with UV-protection and water repellence, sanding lightly between coats on :"]
["Doors","m2",22,null,{"$f":"+D604*C604","v":0}]
["On bumper rails, skirtings, etc. not exceeding 300mm wide","m",178,null,0]
[]
["Total for Bill No. 16",{"$nulls":3},{"$f":"+E578+E579+E583+E584+E585+E589+E594+E595+E596+E600+E604+E605","v":0}]
[]
["BILL NO. 17"]
["EXTERNAL WORKS (PROVISIONAL)"]
[]
["MODEL PREAMBLES  The tenderer is referred to the \"Model Preambles for Trades 2008\" for supplementary and comprehensive expansion of descriptions, appropriate provision for which shall be deemed to have been included in all relevant rates"]
[]
["SUPPLEMENTARY PREAMBLESTrade NamesWhere trade names are specified equal materials approved by the Principal Agent may be usedSoil Poisoning Certificate The Tenderer shall provide a Guarantee Certificate signed by an Applicator registered with the Department of Agriculture confirming that the service was carried out in accordance with Act HG36/1947- Department of Agriculture and SANS 10124:2006 "]
[]
["RAINWATER TANKS & STANDS"]
["Approved 5000 litre Polyethylene Low-Profile water tank with Ø40mm inlet, Ø40mm overflow and Ø40mm outlet, Ø480mm lid with 100 x 75mm opening for rainwater pipe and fitted with Ø20mm an approved threaded one piece uv stabilised ABS ball valve complete with 40/20mm uv stabilised ABS reducing bush, Ø20mm uv stabilised ABS long screw parallel thread and Ø20mm uv stabilised pp/nylon insert male elbow on outlet side of valve, embedded in pedestal to a minimum 400mm above ground level and tied down with 2 No. Ø4mm galvanised double strap stay wires tied to galvanised M12 eye bolts drilled and fixed to corners of concrete supporting base ","No",8,null,{"$f":"+D617*C617","v":0}]
[]
["The following in Tank Stands"]
["Excavations in earth not exceeding 2m deep for trenches ","m3",39,null,{"$f":"+D620*C620","v":0}]
["Risk of collapse to sides of trench and hole excavations not exceeding 1,5m deep. ","m2",111,null,0]
["Keeping excavations free of all water other than subterranean water","Item",1,null,0]
["Backfilling from excavated material to trenches, holes, etc. and compact to 95% Mod AASHTO density ","m3",22,null,0]
["Filling from excavated material under water tank slab including levelling and compacting to 95% Mod AASHTO density ","m3",5,null,0]
["Compaction of ground surface under pavings etc including scarifying for a depth of 150mm, breaking down oversize material, adding suitable material where necessary and compacting to 98% Mod AASHHTO density","m2",36,null,0]
["Apply Chlordane or Aldrin type soil insecticides in strict accordance with manufacturers instructions and complying with SANS Specifications 1165 and 1165 respectively, to ground surfaces under surface beds, etc. ","m2",83,null,0]
["25MPa/19mm unreinforced concrete in strip footings ","m3",12,null,0]
["25MPa/19mm reinforced concrete in surface beds ","m3",4,null,0]
["Finishing top surfaces of concrete smooth with a wood float to surface beds ","m2",36,null,0]
["Smooth formwork to edges, risers, ends, etc. not exceeding 300mm high or wide ","m",68,null,0]
["Ref 193 mesh reinforcement in concrete surface beds, slabs, etc. ","m2",36,null,0]
["One brick wall in NFX clay bricks with 4:1 cement mortar ","m2",86,null,0]
["Galvanised wire mesh reinforcement 150mm wide built into walls","m",253,null,0]
["Extra over ordinary brickwork for approved Travertine FBA face brickwork ","m2",59,null,0]
[]
["STORMWATER MANAGEMENT"]
["The following in cutting and shaping platforms to slope away from buildings"]
["Cut, shape and compact in-situ material to 95% MOD AASHTO maximum density ","m3",100,null,{"$f":"+D638*C638","v":0}]
["Fill in-situ material from platform shaping in layers not exceeding 150mm and compact to 95% MOD AASHTO maximum density ","m3",100,null,0]
["Fill imported G7 quality material in layers not exceeding 150mm and compact to 95% MOD AASHTO maximum density ","m3",25,null,0]
[]
["STORMWATER DISPOSAL"]
["The following in V-drains"]
["Excavate in earth not exceeding 2m deep to reduce levels under V-drains","m3",39,null,{"$f":"+D644*C644","v":0}]
["Scarify to a depth of 150mm and level and re-compact earth to 93% MOD AASHTO ","m2",525,null,{"$f":"+D645*C645","v":0}]
["G5 earthfilling under V-drains compacted to 95% Mod AASHTO density","m3",39,null,{"$f":"+D646*C646","v":0}]
["Reinforced concrete Class 25/19 in V-drains cast in panels to falls","m3",39,null,0]
["6 x 25mm Saw cut joints in top of concrete ","m",131,null,0]
["Wood float finish to top of V-drains","m2",263,null,0]
["Mesh Ref. 193 in concrete V-drains","m2",263,null,0]
["Rough formwork to sides not exceeding 300mm high or wide","m",355,null,0]
["10mm Closed Cell expanded polyethylene foam in expansion/isolation joints not exceeding 300mm high","m",382,null,0]
["Sikaflex Pro 3 I-Cure polyurethane sealing compound in 10 x 10mm expansion joints including raking out polyethylene as necessary","m",382,null,0]
[]
["Stormwater Spreader"]
["Class A galvanised Reno Mattress size 4m x 1m x 300mm deep with Kaytech U14 Bidim and filled with 100-250mm suitable un-weathered rock, erected in position complete, including all necessary excavation, levelling, scarifying, compacting, etc. ","No",2,null,{"$f":"+D656*C656","v":0}]
[]
["Stormwater Disperser"]
["Disperser 1500mm long tapering from 900mm to 1500mm wide  x 150mm thick, complete with sixteen cement bricks embedded on-end into concrete and protruding 100mm minimum size 2m x 1m composed of two layers of rocks at end of stormwater channel","No",3,null,{"$f":"+D659*C659","v":0}]
[]
["V-Drain Crossings"]
["2000x1500x6mm Hot dipped galvanised Vastrap plate complete with 70x70x3mm hot dipped galvanised steel angle section support frame ","No",2,null,{"$f":"+D662*C662","v":0}]
[]
["The following in Apron"]
["Excavate in earth not exceeding 2m deep to reduce levels under aprons","m3",18,null,{"$f":"+D665*C665","v":0}]
["Scarify to a depth of 150mm and level and re-compact earth to 93% MOD AASHTO ","m2",235,null,0]
["G5 earthfilling under V-drains compacted to 95% Mod AASHTO density","m3",18,null,0]
["Reinforced concrete Class 25/19 in aprons cast in panels to falls","m3",18,null,0]
["6 x 25mm Saw cut joints in top of concrete ","m",59,null,0]
["Wood float finish to top of aprons","m2",117,null,0]
["Mesh Ref. 193 in concrete aprons","m2",117,null,0]
["Rough formwork to sides not exceeding 300mm high or wide","m",72,null,0]
["10mm Closed Cell expanded polyethylene foam in expansion/isolation joints not exceeding 300mm high","m",113,null,0]
["Sikaflex Pro 3 I-Cure polyurethane sealing compound in 10 x 10mm expansion joints including raking out polyethylene as necessary","m",124,null,0]
[]
["Total for Bill No. 17",{"$nulls":3},{"$f":"+E617+E620+E621+E622+E623+E624+E625+E626+E627+E628+E629+E630+E631+E632+E633+E634+E638+E639+E640+E644+E645+E646+E647+E648+E649+E650+E651+E652+E653+E656+E659+E662+E665+E666+E667+E668+E669+E670+E671+E672+E673+E674","v":0}]
[]
["BILL NO. 18"]
["NOTE: The following allowances are for specialist activities to be performed "]
["PROVISIONAL SUMS"]
[]
["Asbestos Removal"]
["Allow the Sum of R100 000.00 for the Asbestos Inspection Authority (AIA) to be appointed by the Department of Public Works via the awarded contractor. The Awarded contractor will be expected to provide three (3) quotes for AIA services for approval and acceptance  by the Department of Public Works and will then be appointed by the Contractor and paid by the Contractor . The appointed AIA and the appointed Asbestos contractor for removal and disposal will not be the same entity / company. Refer to duties for AIA and Asbestos contractor attached” The  duties and responsibilities of the appointed AIA Inspection Authority are briefly the following in terms of the Asbestos Abatement  Regulations of 2020:1.\tIf there is no Asbestos Inventory available, the AIA will develop the Inventory for the Client.2.\tIf there is an Asbestos Inventory, the AIA will review the Inventory and Risk Assessment and  amend if needed.3.\tBased on the Inventory, recommend an anticipated Scope of Work and advise the Client of what category of Asbestos Contractor needs to be appointed.4.\tWhen the asbestos Contractor is appointed, in consultation with the Asbestos Contractor develop and approve the Plan of Work.5.\tUpon approval of the Asbestos Plan, at least 7 days before work is scheduled to take place, submit the plan to Department of Employment and Labour.6.\tEnsure that acknowledgement of the Work Plan Submission to the Department of Employment and Labour is received within the 7 day period.7.\tEnsure that Medical Fitness certificates and Asbestos training records are available.8.\tProvide guidance and site specific instructions to the Asbestos removal and disposal Sub- Contractor.9.\tInspect work activities and if needed to stop work which is not in accordance with the approved work plan or posing a risk to health and safety of persons.10.\tPerform planned air monitoring to determine exposure levels.11.\tConduct analysis of air monitoring samples.12.\tProvide the Client with a report on findings and issue a Clearance to the Client as well as ensuring that the Client is provided with Disposal certificates.","Item",1,{"v":100000,"d":"R100,000.00"},{"$f":"+D683*C683","v":{"v":100000,"d":"R100,000.00"}}]
["Allow for Profit and Attendance on the abovementioned Sum","%",{"v":0,"d":"0%"},{"$f":"+E683","v":{"v":100000,"d":"R100,000.00"}},0]
[]
["Kitchen Equipment"]
["Allow the Provisional Sum of R15 000.00 for items in the Kitchen to be attended to i.e. Gas Installation, Worktops and Sinks as required    ","Item","1.00",{"v":15000,"d":"R15,000.00"},{"v":15000,"d":"R15,000.00"}]
["Allow for Profit and Attendance on the abovementioned Sum","%",{"v":0,"d":"0%"},{"$f":"+E687","v":{"v":15000,"d":"R15,000.00"}},{"$f":"+D688*C688","v":0}]
[]
["Total for Bill No. 18",{"$nulls":3},{"$f":"+E683+E684+E687+E688","v":{"v":115000,"d":"R115,000.00"}}]
[]
["SUMMARY:"]
["Preliminaries",{"$nulls":3},{"$f":"+E12","v":0}]
["Alterations (Provisional)",{"$nulls":3},{"$f":"+E79","v":0}]
["Earthworks (Provisional",{"$nulls":3},{"$f":"+E111","v":0}]
["Concrete, Formwork & Reinforcement (Provisional)",{"$nulls":3},{"$f":"+E151","v":0}]
["Masonry (Provisional)",{"$nulls":3},{"$f":"+E179","v":0}]
["Waterproofing (Provisional)",{"$nulls":3},{"$f":"+E204","v":0}]
["Roof Coverings (Provisional)",{"$nulls":3},{"$f":"+E251","v":0}]
["Carpentry & Joinery (Provisional)",{"$nulls":3},{"$f":"+E293","v":0}]
["Ceilings, Partitions & Access Flooring (Provisional)",{"$nulls":3},{"$f":"+E311","v":0}]
["Ironmongery (Provisional)",{"$nulls":3},{"$f":"+E335","v":0}]
["Metalwork (Provisional)",{"$nulls":3},{"$f":"+E369","v":{"v":130000,"d":"R130,000.00"}}]
["Plumbing & Drainage (Provisional)",{"$nulls":3},{"$f":"+E404","v":{"v":10000,"d":"R10,000.00"}}]
["Electrical Work (Provisional)",{"$nulls":3},{"$f":"+E531","v":0}]
["Plastering (Provisional)",{"$nulls":3},{"$f":"+E551","v":0}]
["Glazing (Provisional)",{"$nulls":3},{"$f":"+E564","v":0}]
["Paintwork (Provisional)",{"$nulls":3},{"$f":"+E607","v":0}]
["External Works (Provisional)",{"$nulls":3},{"$f":"+E676","v":0}]
["Provisional Sums",{"$nulls":3},{"$f":"+E690","v":{"v":115000,"d":"R115,000.00"}}]
["TOTAL BUILDERS WORK",{"$nulls":3},{"$f":"SUM(E693:E710)","v":{"v":255000,"d":"R255,000.00"}}]
[]
["Value Added Tax (15%)",{"$nulls":3},{"$f":"+E711*0.15","v":{"v":38250,"d":"R38,250.00"}}]
[]
["TOTAL PROJECT COST:  Carried forward to T2.22.",{"$nulls":3},{"$f":"+E711+E713","v":{"v":293250,"d":"R293,250.00"}}]